bitfinex/quotes_ETHUSD_20241216
["timestamp","ask_amount","ask_price","bid_price","bid_amount"]
[1734350949937,0.7914,3913.6,3912.4,1.27795]
[1734350950514,0.755,3913.5,3912.4,1.27795]
[1734350950822,1.08602,3913.5,3912.4,1.27795]
[1734350951228,1.08602,3913.5,3912.1,0.02555642]
[1734350951403,0.755,3913.5,3912.6,1.27792]
[1734350951725,0.755,3913.5,3912.8,4.28467083]
[1734350951927,2.55452,3914.7,3913.6,1.27759]
[1734350951928,0.755,3914.6,3913.6,1.27759]
[1734350952228,0.755,3914.6,3913.3,1.27767]
[1734350952229,1.085952,3914.6,3913.3,1.27767]
[1734350952432,0.7897,3914.5,3912.5,3.0]
[1734350952634,0.7897,3914.5,3913.4,1.27766]
[1734350952791,0.7897,3914.5,3913.2,1.27772]
[1734350952988,0.7897,3914.5,3912.6,0.0402]
[1734350953195,0.7897,3914.5,3913.1,1.27775]
[1734350953406,0.7897,3914.5,3913.2,0.127775]
[1734350953738,0.7897,3914.5,3913.6,1.27758]
[1734350954285,2.55486,3914.1,3912.8,1.27782]
[1734350954585,0.7959,3913.7,3912.1,0.0402]
[1734350954802,0.7959,3913.7,3912.6,1.27788]
[1734350955098,0.7959,3913.7,3912.1,0.0402]
[1734350955099,0.7959,3913.7,3912.3,1.27802]
[1734350955299,0.7959,3913.7,3912.7,1.27787]
[1734350955502,0.7959,3913.7,3912.8,1.27784]
[1734350956241,0.7959,3913.7,3912.9,1.30337403]
[1734350956421,0.7959,3913.7,3912.9,0.06575403]
[1734350956734,0.7959,3913.7,3912.9,0.1745634]
[1734350956886,0.7959,3913.7,3913.4,1.27763]
[1734350958391,0.7959,3913.7,3912.9,0.1745634]
[1734350958392,0.7959,3913.7,3913.5,1.27761]
[1734350958737,2.55447,3914.8,3913.1,1.3032997]
[1734350958738,0.7872,3914.1,3913.2,1.27772]
[1734350958946,0.7872,3914.1,3913.3,0.02554877]
[1734350959128,0.7872,3914.1,3913.4,0.13032688]
[1734350959328,0.7872,3914.1,3913.5,0.02554859]
[1734350959532,0.7872,3914.1,3913.7,1.27753]
[1734350962002,0.7872,3914.1,3913.4,0.13032688]
[1734350962448,0.7872,3914.1,3913.5,0.02554794]
[1734350962604,0.7898,3915.4,3913.8,0.0402]
[1734350963009,0.7898,3915.4,3914.7,1.27723]
[1734350963240,0.7898,3915.4,3913.8,1.31771]
[1734350963241,0.7898,3915.4,3914.3,0.02554123]
[1734350963452,0.7898,3915.4,3915.0,2.44205609]
[1734350963634,0.7898,3915.4,3914.8,1.27717]
[1734350963830,0.7898,3915.4,3914.9,0.37447637]
[1734350964013,0.7898,3915.4,3915.2,1.27706]
[1734350964599,0.7898,3915.4,3914.9,0.37447637]
[1734350964600,0.7898,3915.4,3914.1,1.27741]
[1734350964802,0.7898,3915.4,3914.2,0.0402]
[1734350965108,0.7898,3915.4,3914.3,0.02554092]
[1734350965307,0.7898,3915.4,3915.1,1.27709]
[1734350966917,0.7898,3915.4,3914.4,0.43461766]
[1734350967333,0.7898,3915.4,3914.5,1.27728]
[1734350967542,0.7898,3915.4,3914.9,3.0030257]
[1734350967758,0.8043,3916.4,3915.3,1.27704]
[1734350968067,0.8043,3916.4,3914.9,4.2801857]
[1734350968068,0.8043,3916.4,3914.9,4.2801957]
[1734350968433,0.8043,3916.4,3915.3,1.27702]
[1734350968759,0.8043,3916.4,3914.9,4.2801957]
[1734350968760,0.8076,3916.3,3915.0,1.27713]
[1734350969147,0.8076,3916.3,3915.4,1.27699]
[1734350970157,0.8076,3916.3,3915.1,1.27708]
[1734350970366,0.8076,3916.3,3915.3,3.0030257]
[1734350970527,0.8076,3916.3,3915.0,3.0]
[1734350970528,0.8076,3916.3,3916.0,1.27678]
[1734350971076,0.8076,3916.3,3915.6,3.0030257]
[1734350971259,0.8076,3916.3,3915.9,1.27682]
[1734350971565,0.8076,3916.3,3916.0,0.02553292]
[1734350971731,0.8076,3916.3,3916.0,1.27681]
[1734350972132,0.8076,3916.3,3915.7,0.43201757]
[1734350972369,0.8076,3916.3,3915.4,0.0402]
[1734350972770,0.8076,3916.3,3915.7,1.27688]
[1734350973300,2.55354,3916.2,3915.0,1.27711]
[1734350973575,0.8084,3916.0,3914.8,1.27719]
[1734350973945,0.8084,3916.0,3914.5,3.0]
[1734350974146,0.8084,3916.0,3913.7,1.59538306]
[1734350974147,0.8084,3915.6,3914.8,3.0030257]
[1734350974542,0.8084,3915.6,3915.2,1.27705]
[1734350974971,0.8084,3915.6,3914.7,1.27721]
[1734350974972,0.8084,3915.6,3914.9,1.27714]
[1734350975289,0.8084,3915.6,3915.0,0.255435]
[1734350975793,0.8084,3915.6,3915.5,1.27697]
[1734350976147,2.55296,3917.1,3915.9,1.27684]
[1734350976148,0.7914,3916.0,3915.9,1.27684]
[1734350977084,0.7914,3916.0,3915.0,1.27713]
[1734350977452,0.7914,3915.9,3915.0,1.27713]
[1734350978091,0.7914,3915.9,3915.1,1.2771]
[1734350978261,0.7914,3915.9,3915.4,1.27699]
[1734350979487,0.7914,3915.9,3915.2,1.27707]
[1734350979696,0.7914,3915.9,3915.1,1.2771]
[1734350979990,0.7914,3915.9,3915.2,0.12771]
[1734350980198,0.7914,3915.9,3915.8,1.27687]
[1734350981096,0.7914,3915.9,3915.6,1.27694]
[1734350981277,0.7914,3915.9,3915.2,1.27707]
[1734350981474,0.7914,3915.9,3915.0,1.27711]
[1734350981695,0.7914,3915.9,3915.3,1.27701]
[1734350982185,0.7914,3915.9,3915.4,1.277]
[1734350982394,0.7914,3915.9,3915.5,1.27694]
[1734350982603,0.7914,3915.9,3914.8,0.0255363]
[1734350982748,0.7914,3915.9,3915.6,1.27693]
[1734350983387,3.0,3917.5,3914.8,3.0]
[1734350983388,0.7533,3916.9,3915.7,0.02553638]
[1734350983599,0.7533,3916.9,3915.2,3.02856208]
[1734350983902,0.7533,3916.9,3915.9,1.27684]
[1734350984059,0.7533,3916.9,3915.2,3.02856208]
[1734350984060,0.7533,3916.9,3916.1,1.27676]
[1734350984797,0.7533,3916.9,3915.7,0.02553223]
[1734350985196,0.7533,3916.9,3915.7,0.45980245]
[1734350985510,0.7533,3916.9,3916.3,1.27668]
[1734350985673,0.7533,3916.9,3916.0,0.02553185]
[1734350985882,0.7033,3916.9,3916.3,1.27671]
[1734350986786,0.7033,3916.9,3915.8,0.02553185]
[1734350987103,0.7033,3916.9,3916.1,1.27677]
[1734350987456,0.7033,3916.9,3915.7,0.02553185]
[1734350987656,0.7033,3916.9,3916.4,1.27668]
[1734350989004,0.7033,3916.9,3916.3,1.27671]
[1734350989504,0.7033,3916.9,3915.8,1.40711518]
[1734350989505,0.7033,3916.9,3916.1,1.27677]
[1734350989806,0.7512,3917.1,3915.8,1.27687]
[1734350989955,0.7512,3916.9,3915.8,1.27687]
[1734350990352,0.88132,3916.9,3915.8,1.27687]
[1734350990680,0.7512,3916.8,3915.8,1.27687]
[1734350990859,2.68322,3916.9,3915.6,1.27694]
[1734350990860,2.55324,3916.6,3915.6,1.27694]
[1734350991061,0.7512,3916.5,3915.1,3.0]
[1734350991299,0.7512,3916.5,3915.5,1.27697]
[1734350991859,0.7512,3916.5,3915.6,1.27693]
[1734350992300,0.7512,3916.5,3915.6,1.404623]
[1734350992465,0.7512,3916.5,3915.7,1.2769]
[1734350993413,0.7512,3916.5,3915.6,0.127693]
[1734350993824,0.7512,3916.5,3914.6,2.83397826]
[1734350993968,0.7809,3916.0,3914.7,1.27723]
[1734350994168,0.7809,3916.0,3915.0,1.27711]
[1734350994887,2.55383,3915.7,3914.7,1.27723]
[1734350995083,2.43945569,3916.1,3914.2,1.2774]
[1734350995084,3.33647,3915.5,3914.2,1.2774]
[1734350995323,3.33647,3915.5,3914.4,1.2773]
[1734350995811,3.10373,3915.9,3914.4,1.2773]
[1734350996112,0.813,3915.2,3914.3,1.27736]
[1734350996333,0.813,3915.2,3914.6,2.43945569]
[1734350996525,0.813,3915.2,3914.8,1.2772]
[1734350996693,0.813,3915.2,3915.0,1.27712]
[1734350996895,0.813,3915.2,3914.7,0.2555199]
[1734350997094,0.813,3916.3,3915.4,1.27699]
[1734350997397,0.813,3916.3,3915.5,1.27696]
[1734350998482,0.813,3916.3,3915.6,1.27694]
[1734350999104,0.813,3916.3,3915.7,1.27691]
[1734351000395,0.813,3916.3,3915.5,0.127696]
[1734351000595,0.813,3916.3,3915.5,1.404666]
[1734351000890,0.813,3916.3,3915.6,1.27693]
[1734351001295,0.813,3916.3,3915.5,0.127696]
[1734351001692,0.8156,3916.1,3915.1,1.27709]
[1734351002600,0.8156,3916.1,3914.7,1.5327299]
[1734351002815,0.8156,3916.1,3915.1,1.2771]
[1734351003942,3.36917,3916.1,3914.9,1.27716]
[1734351004140,5.55573521,3916.6,3914.7,1.5327399]
[1734351004141,2.55376,3915.8,3914.7,1.5327399]
[1734351004442,0.7979,3915.5,3914.4,1.27731]
[1734351004652,2.55403,3915.4,3914.2,1.27739]
[1734351004943,0.7623,3915.7,3913.9,1.27746]
[1734351005145,0.7623,3915.0,3913.9,1.27746]
[1734351005346,3.10392,3915.6,3913.5,1.15042894]
[1734351005347,2.5544,3914.9,3913.5,1.15042894]
[1734351005641,0.7623,3914.8,3913.8,1.27749]
[1734351005797,0.7623,3914.8,3913.8,1.63275392]
[1734351006140,0.7623,3914.8,3914.7,1.27723]
[1734351006311,0.7623,3915.5,3914.7,1.27723]
[1734351007241,0.7623,3915.5,3914.2,1.2774]
[1734351007442,0.7623,3915.5,3914.9,3.00246521]
[1734351007640,0.7623,3915.5,3915.4,1.277]
[1734351007860,2.68316,3916.9,3915.4,1.277]
[1734351008066,0.7567,3916.8,3915.5,0.02553703]
[1734351008227,0.7567,3916.8,3916.1,1.27677]
[1734351008569,0.7567,3916.8,3916.1,1.27675]
[1734351009036,0.7567,3916.8,3916.4,1.27665]
[1734351009939,0.7567,3916.8,3916.5,1.27663]
[1734351010137,0.7567,3916.8,3916.2,0.127675]
[1734351010138,0.7567,3916.8,3916.2,1.404385]
[1734351010341,0.7567,3916.8,3916.3,1.27669]
[1734351011647,0.7567,3916.8,3916.2,0.127675]
[1734351011964,0.7567,3916.8,3916.2,1.404405]
[1734351012921,0.7567,3916.8,3916.3,1.4171405]
[1734351014040,0.7567,3916.8,3915.8,1.27687]
[1734351014366,0.7567,3916.8,3915.7,4.15289415]
[1734351014367,0.7567,3916.8,3916.2,1.27674]
[1734351014989,0.7644,3916.7,3915.6,1.27691]
[1734351015145,0.7644,3916.6,3915.6,1.27691]
[1734351016042,0.7644,3916.6,3915.1,2.33730894]
[1734351016243,0.7644,3916.6,3916.0,1.27679]
[1734351017392,0.7644,3916.6,3915.4,1.06022894]
[1734351017685,0.7644,3916.6,3915.6,1.27693]
[1734351018272,2.55284,3917.2,3915.4,1.277]
[1734351018273,0.7644,3916.4,3915.4,1.277]
[1734351018455,0.7644,3916.4,3915.2,0.73205641]
[1734351018791,0.7644,3915.7,3914.6,2.33747894]
[1734351019086,2.5535,3916.2,3914.4,1.27733]
[1734351019087,0.7644,3915.4,3914.4,1.27733]
[1734351019289,3.31841,3915.4,3914.2,1.27739]
[1734351019591,3.31841,3915.4,3914.3,1.27734]
[1734351019906,0.8257,3915.1,3914.0,1.06022894]
[1734351020081,0.8257,3915.7,3914.1,3.02801121]
[1734351020268,0.8257,3915.7,3914.2,1.2154963]
[1734351020595,0.8257,3915.7,3914.3,1.21531514]
[1734351020744,0.8257,3915.7,3914.6,1.27725]
[1734351020945,1.163639,3915.7,3914.6,1.27725]
[1734351021180,1.163639,3915.7,3914.6,1.27723]
[1734351021551,0.8257,3915.7,3914.6,1.27723]
[1734351022349,0.8101,3916.1,3915.2,1.27706]
[1734351022589,0.8101,3916.1,3915.3,1.27703]
[1734351024474,0.8101,3916.1,3916.0,1.27681]
[1734351024965,1.56879052,3917.7,3916.1,1.27677]
[1734351024966,0.8243,3917.2,3916.1,1.27677]
[1734351025166,0.8243,3917.2,3915.5,0.02553427]
[1734351025167,0.337708,3917.1,3916.3,1.27668]
[1734351025332,0.8243,3917.2,3916.3,1.27668]
[1734351025527,0.8243,3917.2,3916.4,1.27667]
[1734351026076,0.8243,3917.2,3916.1,1.27674]
[1734351026357,0.8243,3917.2,3916.2,1.27674]
[1734351027658,0.8243,3917.2,3916.3,1.27668]
[1734351027816,0.8243,3917.2,3916.6,1.27661]
[1734351029368,0.8243,3917.2,3917.1,1.27645]
[1734351029572,0.7853,3917.5,3917.1,1.27645]
[1734351029857,0.7853,3917.5,3917.2,1.27641]
[1734351030304,6.03822485,3919.0,3917.3,1.27635]
[1734351030567,0.7883,3918.8,3917.3,1.27635]
[1734351030852,0.7883,3918.5,3917.3,1.27635]
[1734351031072,3.3403,3918.5,3917.3,1.27635]
[1734351031574,3.3403,3918.5,3916.8,1.27652]
[1734351031575,0.7883,3918.5,3917.8,2.44067451]
[1734351031772,0.7883,3918.5,3917.9,0.24406745]
[1734351031915,0.04775269,3918.4,3918.0,1.30168201]
[1734351032122,0.04775269,3918.4,3918.0,1.27616]
[1734351032336,0.7883,3918.5,3917.9,0.24406745]
[1734351032752,0.7883,3918.5,3918.0,1.27615]
[1734351032968,2.55155,3919.2,3918.0,1.27615]
[1734351032969,0.04929666,3918.4,3918.0,1.6722392]
[1734351033281,0.8216,3919.1,3918.0,1.6722392]
[1734351033422,3.37322,3919.1,3917.8,2.44067451]
[1734351033623,0.8216,3918.7,3917.4,3.71702451]
[1734351033851,0.8216,3918.7,3917.6,1.27627]
[1734351034066,0.8216,3918.5,3916.8,0.0902]
[1734351034565,0.04973826,3918.4,3917.1,1.27643]
[1734351034721,0.81238149,3918.5,3916.9,1.27651]
[1734351034722,2.55221,3918.2,3916.9,1.27651]
[1734351034922,0.04972026,3918.3,3916.8,0.0902]
[1734351035171,2.55233,3918.0,3916.8,1.36675]
[1734351035459,2.55233,3918.0,3916.9,0.43665098]
[1734351036067,0.04948206,3917.9,3916.9,0.43665098]
[1734351036426,0.04948206,3917.9,3917.0,1.27648]
[1734351036728,0.04948206,3917.9,3916.9,0.43665098]
[1734351036729,2.5522,3918.2,3917.1,1.27645]
[1734351036927,0.0487882,3917.8,3917.1,1.27645]
[1734351037226,0.0487702,3917.7,3917.2,0.1713101]
[1734351037422,0.7605,3917.9,3917.2,0.1713101]
[1734351037869,0.0487882,3917.8,3917.2,0.1713101]
[1734351038664,0.0487882,3917.8,3916.9,0.43665098]
[1734351038871,0.0487882,3917.8,3916.9,1.45785098]
[1734351039367,0.0487882,3917.8,3917.2,1.02111]
[1734351039721,0.8109,3918.3,3917.2,1.02111]
[1734351040047,0.8109,3918.3,3917.1,2.99975984]
[1734351040048,0.04887414,3917.7,3917.3,1.0211]
[1734351040256,0.8109,3918.3,3917.3,0.40208598]
[1734351040423,0.04896411,3918.2,3917.3,0.40208598]
[1734351040624,3.36302,3918.3,3917.3,0.40208598]
[1734351041134,0.04896411,3918.2,3917.3,0.40208598]
[1734351042429,0.04896411,3918.2,3917.4,0.44229758]
[1734351042769,3.36302,3918.3,3917.4,0.44229758]
[1734351043173,0.04897967,3918.2,3917.4,0.44229758]
[1734351043544,3.36302,3918.3,3917.4,0.44229758]
[1734351043745,2.55252,3917.7,3916.8,0.0902]
[1734351043941,2.55184,3918.8,3916.0,0.0994]
[1734351043942,0.7989,3917.3,3916.0,0.0994]
[1734351044159,2.55299,3917.0,3916.0,0.0994]
[1734351044359,0.7989,3917.3,3916.1,0.44949285]
[1734351044562,0.04713276,3916.9,3915.7,1.12091]
[1734351044769,0.8056,3917.2,3915.8,1.02149]
[1734351044982,0.04713035,3916.8,3915.7,0.0994]
[1734351045271,0.04692011,3916.7,3915.7,0.0994]
[1734351045479,3.0,3917.9,3915.5,4.02131984]
[1734351045480,3.0,3917.7,3915.5,4.02131984]
[1734351045683,2.55332,3916.5,3915.3,1.02161]
[1734351045837,0.04686609,3916.4,3915.2,0.0994]
[1734351046030,0.04686609,3916.4,3915.3,0.02553395]
[1734351046232,0.04686609,3916.4,3915.5,1.02156]
[1734351046547,0.8056,3916.6,3915.8,1.02149]
[1734351046763,0.8056,3916.6,3915.5,2.99975984]
[1734351046764,0.04684808,3916.3,3915.5,2.99975984]
[1734351047070,0.04648187,3916.2,3915.6,0.30252915]
[1734351047278,0.8056,3916.6,3915.9,2.99975984]
[1734351047431,0.8056,3916.6,3915.8,1.02149]
[1734351047631,0.0465359,3916.5,3915.8,1.02149]
[1734351048770,0.0465359,3916.5,3915.8,1.04702187]
[1734351048977,0.0465359,3916.5,3915.9,0.1349551]
[1734351050147,0.0465359,3916.5,3915.2,0.0994]
[1734351050363,2.55356,3916.1,3915.2,0.0994]
[1734351050676,0.86683163,3916.0,3914.9,1.02173]
[1734351051038,2.55372,3915.9,3914.8,0.0994]
[1734351051258,0.04797084,3915.8,3914.9,0.43853351]
[1734351051767,2.55377,3915.8,3914.9,0.43853351]
[1734351051970,0.04772406,3915.7,3914.6,1.02179]
[1734351052637,0.04772406,3915.7,3914.7,1.02176]
[1734351052833,3.37233,3916.0,3914.7,1.02176]
[1734351053042,2.60126612,3915.9,3914.7,1.02176]
[1734351053675,0.04752612,3915.9,3914.5,0.0994]
[1734351053983,2.55375,3915.9,3914.6,1.02181]
[1734351054277,2.60130811,3915.8,3914.6,1.02181]
[1734351054983,0.04750811,3915.8,3914.7,1.02177]
[1734351055183,0.04750811,3915.8,3914.8,0.15461639]
[1734351055184,2.60126811,3915.8,3914.8,0.15461639]
[1734351055478,0.8187,3916.0,3914.8,0.15461639]
[1734351055479,0.04749009,3915.7,3914.9,0.02553934]
[1734351055641,0.8187,3916.0,3914.9,0.02553934]
[1734351055845,0.04752612,3915.9,3914.8,0.15461639]
[1734351056051,2.55388,3915.7,3914.5,1.54621386]
[1734351056251,0.04739928,3915.6,3914.5,0.52439386]
[1734351056451,0.04739928,3915.6,3914.6,1.02181]
[1734351056681,0.04739928,3915.6,3914.7,0.39864669]
[1734351056896,2.55409,3915.3,3914.1,4.64121555]
[1734351057083,0.8191,3915.5,3914.1,0.36381555]
[1734351057084,0.04724401,3915.2,3914.1,0.36381555]
[1734351057288,0.8191,3915.5,3914.1,0.0994]
[1734351057587,0.8191,3915.5,3914.2,1.27738]
[1734351057588,2.60111284,3915.4,3914.2,1.27738]
[1734351057912,0.04709284,3915.4,3914.3,1.65905431]
[1734351058209,0.04709284,3915.4,3915.2,2.44026306]
[1734351058361,0.04709284,3915.4,3915.3,0.02553584]
[1734351058545,2.55317,3916.7,3915.5,1.27695]
[1734351058751,0.04374322,3915.4,3915.2,3.71730306]
[1734351058946,0.8191,3916.2,3915.3,0.49944331]
[1734351059254,0.04391618,3916.1,3915.2,1.27704]
[1734351059645,0.04391618,3916.1,3914.9,0.0994]
[1734351060255,0.04391618,3916.1,3915.1,1.27709]
[1734351060484,0.8191,3916.2,3914.4,5.44026306]
[1734351060688,0.04419202,3916.1,3914.7,1.27723]
[1734351060902,0.04419202,3916.1,3914.8,1.2772]
[1734351060903,2.55363,3916.0,3914.8,1.2772]
[1734351061123,0.04369799,3915.9,3914.8,1.2772]
[1734351061278,0.04369799,3915.9,3914.9,0.12772]
[1734351061620,0.04369799,3915.9,3914.5,0.0994]
[1734351061621,3.33526,3915.8,3914.6,1.27726]
[1734351061978,0.04366197,3915.7,3914.6,1.27726]
[1734351063079,0.04366197,3915.7,3914.5,0.0994]
[1734351063278,0.7815,3915.8,3914.8,1.27719]
[1734351063483,0.04340173,3915.7,3914.8,1.27719]
[1734351063730,0.04340173,3915.7,3914.4,2.44026306]
[1734351063944,0.04340173,3915.7,3914.8,1.27719]
[1734351064244,0.7815,3915.8,3914.8,1.27719]
[1734351064446,0.04338372,3915.6,3914.8,2.44026306]
[1734351064737,0.7815,3915.8,3914.8,3.71744306]
[1734351064891,0.7815,3915.8,3915.3,1.27702]
[1734351065096,0.0433601,3915.7,3915.3,1.27702]
[1734351065364,0.7815,3915.8,3914.7,0.0994]
[1734351065498,0.7815,3915.8,3914.4,2.44026306]
[1734351065698,0.7815,3915.8,3914.6,1.27726]
[1734351065939,0.04346941,3915.7,3915.1,1.2771]
[1734351066258,0.04346941,3915.7,3914.7,0.37175231]
[1734351066431,0.04346941,3915.7,3915.2,1.27704]
[1734351066633,0.7815,3915.8,3915.2,1.27704]
[1734351066944,0.04346941,3915.7,3915.0,1.27713]
[1734351067249,0.04346941,3915.7,3915.2,0.127704]
[1734351067544,0.8174,3916.3,3915.7,1.2769]
[1734351067901,0.04364793,3916.2,3915.4,1.27699]
[1734351068218,0.8174,3916.3,3915.4,1.27699]
[1734351068412,0.8174,3916.3,3915.2,0.127704]
[1734351068615,0.8174,3916.3,3915.4,1.277]
[1734351069140,0.04367917,3916.2,3915.2,2.44026306]
[1734351069351,0.04367917,3916.2,3915.3,1.30257525]
[1734351069541,0.8174,3916.3,3915.6,1.27694]
[1734351069727,0.04371322,3916.1,3915.6,1.27694]
[1734351069927,0.04373123,3916.2,3915.6,1.27694]
[1734351070143,0.8174,3916.3,3915.6,1.27694]
[1734351070360,0.04371322,3916.1,3915.6,0.255398]
[1734351070507,0.04373123,3916.2,3916.0,1.27681]
[1734351070707,0.8174,3916.3,3916.0,1.27681]
[1734351071455,0.8174,3916.3,3916.1,1.27677]
[1734351071749,0.89997598,3917.6,3915.6,2.44026306]
[1734351071750,0.8178,3917.1,3915.6,2.44026306]
[1734351072046,0.8178,3917.0,3915.9,1.27683]
[1734351072355,0.86185742,3917.0,3915.7,0.24402631]
[1734351072511,0.34147674,3916.9,3916.0,1.2768]
[1734351072712,0.04402141,3916.8,3916.0,1.2768]
[1734351073060,0.8178,3916.7,3915.2,2.44026306]
[1734351073206,0.8178,3916.6,3915.4,1.27697]
[1734351073406,0.34150114,3916.5,3915.4,1.27697]
[1734351073646,0.38572874,3916.5,3915.4,1.27697]
[1734351074305,0.7971,3916.4,3915.4,1.27697]
[1734351074506,0.04419158,3916.3,3915.4,1.27697]
[1734351074902,0.04419158,3916.3,3915.5,1.27697]
[1734351075748,0.04419158,3916.3,3915.8,1.27687]
[1734351076455,0.04419158,3916.3,3915.9,1.27683]
[1734351076812,0.7971,3918.0,3916.1,0.0994]
[1734351077122,0.7971,3918.0,3917.1,1.02116]
[1734351077123,0.04297065,3917.9,3917.1,1.02116]
[1734351077304,0.7971,3918.0,3917.2,1.04665507]
[1734351077504,0.7971,3918.0,3917.2,1.02113]
[1734351077505,0.03723914,3917.9,3917.2,1.02113]
[1734351078327,0.7971,3917.8,3916.7,1.02124]
[1734351078512,0.7971,3917.6,3916.4,1.02132]
[1734351078714,2.55219,3918.2,3916.2,3.46165306]
[1734351078715,2.55281,3917.3,3916.2,3.46165306]
[1734351078930,0.835171,3917.2,3916.2,3.46165306]
[1734351079365,0.835171,3917.2,3916.3,1.02136]
[1734351079749,0.835171,3917.2,3916.1,1.02142]
[1734351079951,0.7764,3917.0,3915.8,2.53966306]
[1734351080150,0.7764,3917.0,3916.0,1.02143]
[1734351080379,0.03758499,3916.9,3916.0,1.02143]
[1734351080589,0.03758499,3916.9,3916.1,0.35610931]
[1734351080941,0.765,3916.8,3916.1,0.35610931]
[1734351081143,0.765,3916.8,3915.7,1.02152]
[1734351081340,0.8284,3916.7,3915.4,2.44026306]
[1734351081571,3.38191,3916.2,3915.0,1.02171]
[1734351081775,0.8284,3916.2,3914.9,2.44026306]
[1734351082086,0.03723267,3916.1,3915.1,1.02168]
[1734351083035,0.03723267,3916.1,3915.0,0.29114154]
[1734351083036,0.7789,3916.0,3915.0,0.29114154]
[1734351083144,3.33254,3916.0,3915.0,0.29114154]
[1734351083485,0.03685824,3915.9,3915.0,0.29114154]
[1734351083690,0.03685824,3915.9,3914.7,1.39353231]
[1734351083986,2.59056824,3915.9,3914.7,1.39353231]
[1734351084171,2.59056824,3915.9,3914.8,1.02175]
[1734351084695,0.03685824,3915.9,3914.9,1.02173]
[1734351085884,0.03685824,3915.9,3914.7,3.37454987]
[1734351085885,0.03685824,3915.9,3914.7,4.39632987]
[1734351086185,2.55375,3915.8,3914.8,0.84565588]
[1734351086488,0.8041,3915.7,3914.8,0.84565588]
[1734351086802,3.3941798,3915.7,3914.4,1.2773]
[1734351087000,0.8041,3915.5,3914.4,1.2773]
[1734351087143,0.8041,3915.5,3914.5,1.21438215]
[1734351087346,0.03620575,3915.4,3914.7,1.27721]
[1734351087555,0.8041,3915.5,3914.7,1.27721]
[1734351087943,0.03611199,3915.4,3914.7,1.27721]
[1734351088786,0.8041,3915.5,3914.7,1.27721]
[1734351089369,0.8041,3915.5,3914.8,1.27718]
[1734351089568,0.8041,3915.5,3914.9,0.18430913]
[1734351089769,0.03610679,3915.4,3914.9,0.18430913]
[1734351090071,0.03610679,3915.4,3915.1,1.2771]
[1734351090272,0.8028,3916.6,3915.3,1.27704]
[1734351090474,0.8028,3916.6,3915.7,1.27687]
[1734351090701,0.03376782,3916.5,3915.7,1.27687]
[1734351091223,0.8028,3916.4,3915.2,1.27704]
[1734351091528,0.03282491,3916.3,3915.3,1.64840789]
[1734351091869,0.55,3916.0,3914.8,1.06022894]
[1734351092014,0.8028,3915.9,3914.6,0.5659113]
[1734351092219,0.8028,3915.9,3914.6,1.06022894]
[1734351092220,0.83553202,3915.9,3914.6,1.06022894]
[1734351092525,0.83553202,3915.9,3914.7,1.21536833]
[1734351092728,0.83553202,3915.9,3914.6,0.02554001]
[1734351092915,0.8028,3915.9,3915.1,1.27707]
[1734351093222,0.03267751,3915.8,3915.2,1.27706]
[1734351093581,0.8028,3915.9,3915.2,1.27707]
[1734351093786,0.8028,3915.9,3915.3,1.27701]
[1734351094021,0.8028,3915.9,3915.4,0.1404717]
[1734351094022,0.03267751,3915.8,3915.4,0.1404717]
[1734351094628,0.03267751,3915.8,3915.1,0.127707]
[1734351094828,0.8028,3915.9,3915.1,0.127707]
[1734351095039,0.55,3915.8,3914.6,1.06022894]
[1734351095184,0.55,3915.8,3914.7,1.21551728]
[1734351095185,0.8237,3915.6,3914.7,1.21551728]
[1734351095389,0.8237,3915.6,3914.5,1.27729]
[1734351095590,0.03266518,3915.5,3914.6,1.2155844]
[1734351095822,0.03266518,3915.5,3914.7,0.35531033]
[1734351095990,0.03266518,3915.5,3914.3,1.15962894]
[1734351095991,2.55409,3915.3,3914.3,1.06022894]
[1734351096192,2.55409,3915.3,3914.4,1.21560797]
[1734351096390,2.55409,3915.3,3914.2,1.27739]
[1734351096391,0.03243913,3915.2,3914.2,1.27739]
[1734351096629,0.03243913,3915.2,3914.3,2.49293883]
[1734351096932,0.8237,3915.9,3914.8,1.27719]
[1734351097234,0.03247947,3915.8,3914.9,1.27716]
[1734351097733,0.03247947,3915.8,3915.0,1.27713]
[1734351097934,0.03247947,3915.8,3914.7,1.06022894]
[1734351098178,0.8237,3915.9,3915.3,1.27703]
[1734351098441,0.8237,3915.9,3915.1,1.2771]
[1734351098741,0.03237524,3915.8,3915.2,0.12771]
[1734351099342,0.8237,3915.6,3914.6,2.33748894]
[1734351099490,0.8237,3915.6,3914.7,1.21547753]
[1734351099491,0.03253489,3915.5,3914.7,1.21547753]
[1734351099691,0.03253489,3915.5,3914.6,1.27726]
[1734351099692,0.8237,3915.6,3914.6,1.27726]
[1734351100120,2.55352,3916.2,3914.6,1.27724]
[1734351100121,2.55356,3916.1,3914.6,1.27724]
[1734351100321,0.03263017,3916.0,3915.3,3.00279756]
[1734351100534,0.8237,3916.7,3915.7,1.2769]
[1734351100734,0.0328581,3916.6,3915.7,1.2769]
[1734351101446,0.8237,3916.5,3915.5,1.27697]
[1734351101611,0.8237,3916.5,3915.5,0.24365989]
[1734351101811,0.03282208,3916.4,3915.3,1.06022894]
[1734351102018,0.03282208,3916.4,3915.8,1.27686]
[1734351102530,0.03282208,3916.4,3915.3,2.36277313]
[1734351102531,0.03282208,3916.4,3915.3,2.33723894]
[1734351102851,0.8237,3916.5,3915.5,1.27694]
[1734351103331,0.03282208,3916.4,3915.5,1.27694]
[1734351103540,0.03282208,3916.4,3915.5,1.52059689]
[1734351104439,0.8166,3916.3,3915.5,0.24365689]
[1734351104940,0.8166,3916.3,3915.3,1.27703]
[1734351105149,0.03286943,3916.2,3915.3,1.27703]
[1734351106360,0.03286943,3916.2,3915.4,1.277]
[1734351108604,0.03286943,3916.2,3915.1,1.08576595]
[1734351108605,0.03286943,3916.2,3915.5,1.27697]
[1734351109144,0.8166,3916.3,3915.5,1.27697]